[Event "Late-Titled-Tuesday-Blitz-March-12-2024"]
[Site "Chess.com"]
[Date "2024.03.12"]
[Round "7"]
[White "rdarruda"]
[Black "pirulillo"]
[Result "1-0"]
[WhiteElo "2558"]
[BlackElo "2313"]
[TimeControl "180+1"]
[EndTime "15:17:01 PDT"]
[Termination "rdarruda won by resignation"]

1. Nf3 {[%clk 0:02:58.9]} 1... Nf6 {[%clk 0:02:59.7]} 2. b3 {[%clk 0:02:59.8]}
2... g6 {[%clk 0:02:59.4]} 3. Bb2 {[%clk 0:03:00.4]} 3... Bg7 {[%clk 0:03:00.2]}
4. e3 {[%clk 0:03:00]} 4... O-O {[%clk 0:03:00.2]} 5. Be2 {[%clk 0:03:00.2]}
5... d6 {[%clk 0:03:00.4]} 6. O-O {[%clk 0:03:00.1]} 6... e5 {[%clk 0:03:00.6]}
7. d4 {[%clk 0:02:59.3]} 7... e4 {[%clk 0:03:00.8]} 8. Nfd2 {[%clk 0:02:59.9]}
8... Re8 {[%clk 0:03:01.4]} 9. c4 {[%clk 0:03:00.1]} 9... h5 {[%clk 0:03:00.8]}
10. h3 {[%clk 0:02:59.5]} 10... Bf5 {[%clk 0:03:00.2]} 11. Nc3 {[%clk 0:02:59]}
11... c6 {[%clk 0:03:00.3]} 12. Re1 {[%clk 0:02:58.6]} 12... Nbd7 {[%clk
0:02:56]} 13. Rc1 {[%clk 0:02:57.2]} 13... Nf8 {[%clk 0:02:55]} 14. Nf1 {[%clk
0:02:56.6]} 14... h4 {[%clk 0:02:53.5]} 15. Nh2 {[%clk 0:02:55.6]} 15... N8h7
{[%clk 0:02:51.4]} 16. Ng4 {[%clk 0:02:54.3]} 16... Qd7 {[%clk 0:02:48.2]} 17.
b4 {[%clk 0:02:45.4]} 17... Bxg4 {[%clk 0:02:47]} 18. Bxg4 {[%clk 0:02:38.7]}
18... Nxg4 {[%clk 0:02:47]} 19. Qxg4 {[%clk 0:02:38.7]} 19... f5 {[%clk
0:02:45.5]} 20. Qxh4 {[%clk 0:02:36.7]} 20... d5 {[%clk 0:02:30.6]} 21. cxd5
{[%clk 0:02:34.8]} 21... cxd5 {[%clk 0:02:31.5]} 22. Rc2 {[%clk 0:02:32.3]}
22... Rf8 {[%clk 0:02:22.7]} 23. Rec1 {[%clk 0:02:18]} 23... g5 {[%clk 0:02:21]}
24. Qh5 {[%clk 0:02:12.5]} 24... Rf6 {[%clk 0:02:16.8]} 25. Qe2 {[%clk
0:02:01.2]} 25... f4 {[%clk 0:02:13.6]} 26. Qg4 {[%clk 0:02:00.2]} 26... Rf5
{[%clk 0:01:59.4]} 27. Qe2 {[%clk 0:01:22.9]} 27... f3 {[%clk 0:01:51.1]} 28.
Qb5 {[%clk 0:01:22.5]} 28... Qf7 {[%clk 0:01:47.8]} 29. g4 {[%clk 0:01:18.6]}
29... Nf6 {[%clk 0:01:31.1]} 30. gxf5 {[%clk 0:01:13]} 30... Qh5 {[%clk
0:01:30.9]} 31. Qf1 {[%clk 0:01:12.7]} 31... g4 {[%clk 0:01:26]} 32. Nb5 {[%clk
0:01:06.6]} 32... Qxf5 {[%clk 0:01:13.3]} 33. Nd6 {[%clk 0:01:03]} 33... Qd7
{[%clk 0:01:12.8]} 34. Rc8+ {[%clk 0:00:43.7]} 34... Rxc8 {[%clk 0:01:11.8]} 35.
Nxc8 {[%clk 0:00:44.6]} 35... Bh6 {[%clk 0:00:56.4]} 36. Kh1 {[%clk 0:00:35.8]}
36... gxh3 {[%clk 0:00:42.3]} 37. Qg1+ {[%clk 0:00:29.7]} 37... Kh7 {[%clk
0:00:41.4]} 38. Qg3 {[%clk 0:00:29.2]} 38... Qg4 {[%clk 0:00:36.7]} 39. Rc7+
{[%clk 0:00:28.1]} 39... Bg7 {[%clk 0:00:36.1]} 40. Qxg4 {[%clk 0:00:18.2]}
40... Nxg4 {[%clk 0:00:35.9]} 41. Nd6 {[%clk 0:00:18.5]} 41... h2 {[%clk
0:00:33]} 42. Nf5 {[%clk 0:00:17.2]} 42... Nxf2+ {[%clk 0:00:29.5]} 43. Kxh2
{[%clk 0:00:17.7]} 43... Ng4+ {[%clk 0:00:29.6]} 44. Kg3 {[%clk 0:00:17.9]}
44... f2 {[%clk 0:00:28.3]} 45. Rxg7+ {[%clk 0:00:16.6]} 45... Kh8 {[%clk
0:00:28]} 46. Kg2 {[%clk 0:00:17.2]} 46... b5 {[%clk 0:00:28.6]} 47. Rc7 {[%clk
0:00:15]} 47... a5 {[%clk 0:00:29.5]} 48. Rc1 {[%clk 0:00:15.2]} 48... a4 {[%clk
0:00:29.1]} 49. Kg3 {[%clk 0:00:15.6]} 49... a3 {[%clk 0:00:27.5]} 50. Bxa3
{[%clk 0:00:14.6]} 50... Nxe3 {[%clk 0:00:27.4]} 51. Nxe3 {[%clk 0:00:14.2]}
51... f1=N+ {[%clk 0:00:26.4]} 52. Nxf1 {[%clk 0:00:13.6]} 1-0

[Event "Late-Titled-Tuesday-Blitz-March-12-2024"]
[Site "Chess.com"]
[Date "2024.03.12"]
[Round "7"]
[White "Practical-Play"]
[Black "NMJeevanK"]
[Result "1-0"]
[WhiteElo "2472"]
[BlackElo "2605"]
[TimeControl "180+1"]
[EndTime "15:17:04 PDT"]
[Termination "Practical-Play won by resignation"]

1. e4 {[%clk 0:03:00.9]} 1... e5 {[%clk 0:02:59.6]} 2. Nf3 {[%clk 0:02:58.4]}
2... d6 {[%clk 0:03:00.1]} 3. d4 {[%clk 0:02:55.1]} 3... exd4 {[%clk 0:03:01]}
4. Nxd4 {[%clk 0:02:55.2]} 4... Nf6 {[%clk 0:03:01.7]} 5. Nc3 {[%clk 0:02:55.6]}
5... Be7 {[%clk 0:03:02.2]} 6. Bc4 {[%clk 0:02:52.9]} 6... O-O {[%clk
0:03:01.3]} 7. O-O {[%clk 0:02:53.4]} 7... c6 {[%clk 0:02:56.9]} 8. Re1 {[%clk
0:02:52.8]} 8... a5 {[%clk 0:02:55.2]} 9. a4 {[%clk 0:02:45.3]} 9... Nbd7 {[%clk
0:02:54.5]} 10. Nf5 {[%clk 0:02:33.8]} 10... Ne5 {[%clk 0:02:47]} 11. Nxe7+
{[%clk 0:02:16.6]} 11... Qxe7 {[%clk 0:02:47.9]} 12. Bb3 {[%clk 0:02:17]} 12...
Bg4 {[%clk 0:02:23.8]} 13. f3 {[%clk 0:02:05.7]} 13... Bh5 {[%clk 0:02:19.5]}
14. Bg5 {[%clk 0:01:57.9]} 14... h6 {[%clk 0:02:18.9]} 15. Bh4 {[%clk
0:01:57.2]} 15... Rae8 {[%clk 0:02:09.2]} 16. g4 {[%clk 0:01:33.2]} 16... Bg6
{[%clk 0:02:08.7]} 17. h3 {[%clk 0:01:31.8]} 17... Bh7 {[%clk 0:01:37.7]} 18. f4
{[%clk 0:01:16.7]} 18... Ng6 {[%clk 0:01:36.2]} 19. Bg3 {[%clk 0:01:09.8]} 19...
Qc7 {[%clk 0:01:36.4]} 20. Qd2 {[%clk 0:01:04.7]} 20... Nd7 {[%clk 0:01:22.8]}
21. Rad1 {[%clk 0:01:02.1]} 21... d5 {[%clk 0:01:11.4]} 22. exd5 {[%clk
0:00:57.4]} 22... Nc5 {[%clk 0:00:59.8]} 23. Ba2 {[%clk 0:00:42.2]} 23... cxd5
{[%clk 0:00:55.9]} 24. Nxd5 {[%clk 0:00:33.4]} 24... Qd6 {[%clk 0:00:49.3]} 25.
Rxe8 {[%clk 0:00:21.3]} 25... Rxe8 {[%clk 0:00:48.4]} 26. Nc3 {[%clk 0:00:19.9]}
26... Qb6 {[%clk 0:00:39.8]} 27. Bf2 {[%clk 0:00:19.4]} 27... Qc7 {[%clk
0:00:26.3]} 28. Nd5 {[%clk 0:00:16.9]} 28... Qc6 {[%clk 0:00:21.8]} 29. Nc3
{[%clk 0:00:11]} 29... Nf8 {[%clk 0:00:16]} 30. Bd5 {[%clk 0:00:10.8]} 30... Qc8
{[%clk 0:00:14.1]} 31. Nb5 {[%clk 0:00:10.2]} 31... Ne4 {[%clk 0:00:13.3]} 32.
Bxe4 {[%clk 0:00:10.3]} 32... Bxe4 {[%clk 0:00:14.2]} 33. Nd6 {[%clk 0:00:10.6]}
33... Qc6 {[%clk 0:00:13.2]} 34. Nxe8 {[%clk 0:00:10.2]} 34... Bh1 {[%clk
0:00:13.8]} 35. Bg3 {[%clk 0:00:06.9]} 35... Bf3 {[%clk 0:00:11.6]} 36. Rf1
{[%clk 0:00:06.6]} 36... Be4 {[%clk 0:00:09.5]} 37. Nd6 {[%clk 0:00:06.5]} 37...
Bd5 {[%clk 0:00:08.4]} 38. Nf5 {[%clk 0:00:06.3]} 38... Ne6 {[%clk 0:00:07.6]}
39. Ne7+ {[%clk 0:00:06.7]} 39... Kf8 {[%clk 0:00:08.1]} 40. Nxc6 {[%clk
0:00:07.6]} 40... Bxc6 {[%clk 0:00:07.6]} 41. f5 {[%clk 0:00:08.1]} 41... Ng5
{[%clk 0:00:07.9]} 42. Qd8+ {[%clk 0:00:08.2]} 42... Be8 {[%clk 0:00:06.9]} 43.
Bd6+ {[%clk 0:00:09.1]} 43... Kg8 {[%clk 0:00:06.5]} 44. Qxe8+ {[%clk 0:00:10]}
44... Kh7 {[%clk 0:00:07.1]} 45. h4 {[%clk 0:00:10.8]} 1-0

[Event "Late-Titled-Tuesday-Blitz-March-12-2024"]
[Site "Chess.com"]
[Date "2024.03.12"]
[Round "7"]
[White "mac0504"]
[Black "Hrant_ChessMood"]
[Result "0-1"]
[WhiteElo "2715"]
[BlackElo "2968"]
[TimeControl "180+1"]
[EndTime "15:17:06 PDT"]
[Termination "Hrant_ChessMood won by resignation"]

1. c4 {[%clk 0:02:56.5]} 1... e5 {[%clk 0:02:59.3]} 2. Nc3 {[%clk 0:02:56.9]}
2... Bb4 {[%clk 0:02:59.1]} 3. Nd5 {[%clk 0:02:55]} 3... Be7 {[%clk 0:02:59.3]}
4. e3 {[%clk 0:02:54.6]} 4... Nf6 {[%clk 0:02:57.8]} 5. Nxe7 {[%clk 0:02:54.4]}
5... Qxe7 {[%clk 0:02:57.9]} 6. Be2 {[%clk 0:02:52.8]} 6... O-O {[%clk
0:02:53.5]} 7. d3 {[%clk 0:02:53]} 7... c5 {[%clk 0:02:50.2]} 8. Nf3 {[%clk
0:02:53.1]} 8... Nc6 {[%clk 0:02:50.7]} 9. O-O {[%clk 0:02:53.4]} 9... d5 {[%clk
0:02:48.4]} 10. cxd5 {[%clk 0:02:54.3]} 10... Nxd5 {[%clk 0:02:49.3]} 11. Bd2
{[%clk 0:02:54.7]} 11... b6 {[%clk 0:02:49]} 12. a3 {[%clk 0:02:52.2]} 12... Bb7
{[%clk 0:02:49]} 13. Qa4 {[%clk 0:02:51.1]} 13... Rfd8 {[%clk 0:02:46]} 14. Rfc1
{[%clk 0:02:49.5]} 14... a5 {[%clk 0:02:44.3]} 15. Be1 {[%clk 0:02:47.6]} 15...
h6 {[%clk 0:02:42.3]} 16. Rab1 {[%clk 0:02:44.7]} 16... Rab8 {[%clk 0:02:14.1]}
17. h3 {[%clk 0:02:33]} 17... Ba8 {[%clk 0:02:13.8]} 18. Qc4 {[%clk 0:02:26.9]}
18... Rbc8 {[%clk 0:02:08.8]} 19. Qg4 {[%clk 0:02:18.1]} 19... Nf6 {[%clk
0:02:07.4]} 20. Qa4 {[%clk 0:02:14.7]} 20... Nd5 {[%clk 0:01:58.9]} 21. Qg4
{[%clk 0:02:14.2]} 21... Bb7 {[%clk 0:01:59.4]} 22. Nd2 {[%clk 0:02:05.6]} 22...
Ba6 {[%clk 0:01:50.7]} 23. Qa4 {[%clk 0:01:52.4]} 23... Nf6 {[%clk 0:01:44.8]}
24. Qc2 {[%clk 0:01:40.9]} 24... Qe6 {[%clk 0:01:31.4]} 25. Nc4 {[%clk
0:01:36.5]} 25... Rb8 {[%clk 0:01:28.1]} 26. Bf3 {[%clk 0:01:17.5]} 26... Ne7
{[%clk 0:01:21.9]} 27. b4 {[%clk 0:01:05.4]} 27... cxb4 {[%clk 0:01:21.9]} 28.
axb4 {[%clk 0:01:05.9]} 28... e4 {[%clk 0:01:18.3]} 29. dxe4 {[%clk 0:00:59.1]}
29... Rbc8 {[%clk 0:01:18.5]} 30. b5 {[%clk 0:00:56.4]} 30... Bb7 {[%clk
0:01:18.8]} 31. Qe2 {[%clk 0:00:48]} 31... Bxe4 {[%clk 0:01:13.9]} 32. Bxe4
{[%clk 0:00:46.3]} 32... Nxe4 {[%clk 0:01:14.8]} 33. f3 {[%clk 0:00:27.8]} 33...
Nc5 {[%clk 0:01:10.9]} 34. e4 {[%clk 0:00:20.1]} 34... Nd3 {[%clk 0:01:10.9]}
35. Rc3 {[%clk 0:00:14.6]} 35... Nf4 {[%clk 0:01:09.2]} 36. Qf1 {[%clk
0:00:12.6]} 36... Qg6 {[%clk 0:01:01.6]} 37. Kh2 {[%clk 0:00:09.8]} 37... Rc5
{[%clk 0:00:48.9]} 38. Bg3 {[%clk 0:00:03.5]} 38... Qf6 {[%clk 0:00:30.7]} 39.
e5 {[%clk 0:00:03.4]} 39... Qg5 {[%clk 0:00:29.5]} 40. Rbc1 {[%clk 0:00:01.1]}
40... Nf5 {[%clk 0:00:29.7]} 41. Bxf4 {[%clk 0:00:01.2]} 41... Qxf4+ {[%clk
0:00:30]} 42. Kg1 {[%clk 0:00:02.1]} 42... Rdc8 {[%clk 0:00:29]} 43. Qf2 {[%clk
0:00:01.4]} 43... Rxc4 {[%clk 0:00:28.3]} 44. Rxc4 {[%clk 0:00:01.3]} 44... Rxc4
{[%clk 0:00:29.2]} 45. Rxc4 {[%clk 0:00:01.9]} 45... Qxc4 {[%clk 0:00:29.9]} 46.
Qxb6 {[%clk 0:00:02.7]} 46... Qd4+ {[%clk 0:00:28.5]} 47. Qxd4 {[%clk
0:00:02.4]} 47... Nxd4 {[%clk 0:00:29.4]} 48. b6 {[%clk 0:00:03.1]} 48... a4
{[%clk 0:00:29.9]} 49. b7 {[%clk 0:00:03.2]} 49... Nc6 {[%clk 0:00:30.2]} 0-1

[Event "Late-Titled-Tuesday-Blitz-March-12-2024"]
[Site "Chess.com"]
[Date "2024.03.12"]
[Round "7"]
[White "dealshark"]
[Black "DeArron_Fox"]
[Result "0-1"]
[WhiteElo "2338"]
[BlackElo "2531"]
[TimeControl "180+1"]
[EndTime "15:17:06 PDT"]
[Termination "DeArron_Fox won on time"]

1. d4 {[%clk 0:03:00.9]} 1... d5 {[%clk 0:02:58.5]} 2. c4 {[%clk 0:03:01]} 2...
e6 {[%clk 0:02:58.6]} 3. Nc3 {[%clk 0:03:00.8]} 3... Nf6 {[%clk 0:02:56.6]} 4.
cxd5 {[%clk 0:03:00.9]} 4... exd5 {[%clk 0:02:57.5]} 5. Bg5 {[%clk 0:03:00.7]}
5... c6 {[%clk 0:02:58.1]} 6. e3 {[%clk 0:03:00.6]} 6... Be7 {[%clk 0:02:58.7]}
7. Bd3 {[%clk 0:03:00.8]} 7... Nbd7 {[%clk 0:02:59]} 8. Nge2 {[%clk 0:03:01.1]}
8... Nh5 {[%clk 0:02:57.8]} 9. Bxe7 {[%clk 0:03:00.5]} 9... Qxe7 {[%clk
0:02:58.7]} 10. O-O {[%clk 0:03:00.7]} 10... O-O {[%clk 0:02:59.3]} 11. Qd2
{[%clk 0:03:00.8]} 11... g6 {[%clk 0:02:56.1]} 12. Rae1 {[%clk 0:03:00.9]} 12...
Ndf6 {[%clk 0:02:54.5]} 13. f3 {[%clk 0:02:58]} 13... Re8 {[%clk 0:02:46.2]} 14.
e4 {[%clk 0:02:57.9]} 14... dxe4 {[%clk 0:02:39.3]} 15. fxe4 {[%clk 0:02:58.1]}
15... Qc7 {[%clk 0:02:24.3]} 16. e5 {[%clk 0:02:53.8]} 16... Nd5 {[%clk
0:02:21.4]} 17. Nxd5 {[%clk 0:02:40.6]} 17... cxd5 {[%clk 0:02:22.3]} 18. Rc1
{[%clk 0:02:37.4]} 18... Qb6 {[%clk 0:02:17.9]} 19. Rc5 {[%clk 0:02:37.4]} 19...
Rxe5 {[%clk 0:01:55.3]} 20. Rb5 {[%clk 0:02:29]} 20... Rxe2 {[%clk 0:01:40.8]}
21. Bxe2 {[%clk 0:02:25.8]} 21... Qd6 {[%clk 0:01:08.7]} 22. Bxh5 {[%clk
0:02:22.1]} 22... gxh5 {[%clk 0:01:09.6]} 23. Qg5+ {[%clk 0:02:19.9]} 23... Qg6
{[%clk 0:01:10.2]} 24. Qd8+ {[%clk 0:02:16.2]} 24... Kg7 {[%clk 0:01:09.2]} 25.
Rxd5 {[%clk 0:02:13.7]} 25... Be6 {[%clk 0:00:57.6]} 26. Qd6 {[%clk 0:01:20.8]}
26... Bxd5 {[%clk 0:00:57.4]} 27. Qxd5 {[%clk 0:01:21.7]} 27... Re8 {[%clk
0:00:56.6]} 28. h4 {[%clk 0:01:03.7]} 28... Re2 {[%clk 0:00:41.6]} 29. Rf5
{[%clk 0:00:59.6]} 29... h6 {[%clk 0:00:33.2]} 30. Rf2 {[%clk 0:00:17.8]} 30...
Rxf2 {[%clk 0:00:17.4]} 31. Kxf2 {[%clk 0:00:17.2]} 31... Qc2+ {[%clk
0:00:17.9]} 32. Kg3 {[%clk 0:00:17.7]} 32... Qxb2 {[%clk 0:00:16.5]} 33. Qe5+
{[%clk 0:00:14.8]} 33... Kh7 {[%clk 0:00:14.3]} 34. Qf5+ {[%clk 0:00:14.1]}
34... Kg8 {[%clk 0:00:14]} 35. Qd5 {[%clk 0:00:10.8]} 35... Qb6 {[%clk
0:00:08.9]} 36. a4 {[%clk 0:00:06.7]} 36... Qc7+ {[%clk 0:00:06.4]} 37. Qe5
{[%clk 0:00:05.8]} 37... Qxe5+ {[%clk 0:00:03.7]} 38. dxe5 {[%clk 0:00:06.7]}
38... Kf8 {[%clk 0:00:03.9]} 39. Kf4 {[%clk 0:00:05.2]} 39... Ke7 {[%clk
0:00:04.4]} 40. Kf5 {[%clk 0:00:02.1]} 40... b6 {[%clk 0:00:04.8]} 0-1

[Event "Late-Titled-Tuesday-Blitz-March-12-2024"]
[Site "Chess.com"]
[Date "2024.03.12"]
[Round "7"]
[White "LornerAcosta"]
[Black "KetiTsatsalashvili"]
[Result "1-0"]
[WhiteElo "2627"]
[BlackElo "2457"]
[TimeControl "180+1"]
[EndTime "15:17:07 PDT"]
[Termination "LornerAcosta won on time"]

1. Nf3 {[%clk 0:03:00.9]} 1... Nf6 {[%clk 0:02:59.6]} 2. d4 {[%clk 0:02:59.2]}
2... d6 {[%clk 0:02:57.5]} 3. c3 {[%clk 0:02:59.4]} 3... g6 {[%clk 0:02:57.1]}
4. Bf4 {[%clk 0:03:00]} 4... Bg7 {[%clk 0:02:57.6]} 5. Nbd2 {[%clk 0:03:00.5]}
5... O-O {[%clk 0:02:58]} 6. e4 {[%clk 0:03:01.2]} 6... Nbd7 {[%clk 0:02:57.1]}
7. h3 {[%clk 0:03:01.2]} 7... Re8 {[%clk 0:02:56.5]} 8. Be2 {[%clk 0:02:56.6]}
8... e5 {[%clk 0:02:55]} 9. dxe5 {[%clk 0:02:56.4]} 9... dxe5 {[%clk 0:02:55.9]}
10. Bh2 {[%clk 0:02:54.8]} 10... Qe7 {[%clk 0:02:48.9]} 11. Qc2 {[%clk
0:02:52.8]} 11... Nh5 {[%clk 0:02:44.7]} 12. O-O {[%clk 0:02:51.1]} 12... Nf4
{[%clk 0:02:44.8]} 13. Bc4 {[%clk 0:02:47.5]} 13... Nb6 {[%clk 0:02:38.3]} 14.
Rfe1 {[%clk 0:02:34.7]} 14... Nxc4 {[%clk 0:02:33.4]} 15. Nxc4 {[%clk
0:02:33.1]} 15... b5 {[%clk 0:01:25.5]} 16. Ne3 {[%clk 0:02:13]} 16... c6 {[%clk
0:01:25.6]} 17. a4 {[%clk 0:02:05.3]} 17... bxa4 {[%clk 0:01:19.5]} 18. Rxa4
{[%clk 0:02:00.3]} 18... Be6 {[%clk 0:01:15.8]} 19. Rea1 {[%clk 0:01:53.1]}
19... Reb8 {[%clk 0:01:09.4]} 20. R1a3 {[%clk 0:01:42.8]} 20... Qd7 {[%clk
0:01:04.6]} 21. Ng5 {[%clk 0:01:20.8]} 21... Bf8 {[%clk 0:00:45.6]} 22. Nxe6
{[%clk 0:01:05.6]} 22... Bxa3 {[%clk 0:00:44.9]} 23. Rxa3 {[%clk 0:00:18.9]}
23... Qxe6 {[%clk 0:00:40.2]} 24. Bg3 {[%clk 0:00:17.3]} 24... a5 {[%clk
0:00:38]} 25. Kh2 {[%clk 0:00:16.1]} 25... Rd8 {[%clk 0:00:36]} 26. Ng4 {[%clk
0:00:11.5]} 26... h5 {[%clk 0:00:31.4]} 27. Ne3 {[%clk 0:00:10.2]} 27... Qd7
{[%clk 0:00:25.1]} 28. Nc4 {[%clk 0:00:06.8]} 28... Qc7 {[%clk 0:00:23]} 29. Ra4
{[%clk 0:00:04.8]} 29... Rd7 {[%clk 0:00:16.7]} 30. Qc1 {[%clk 0:00:05.1]} 30...
Rad8 {[%clk 0:00:15.3]} 31. Nxe5 {[%clk 0:00:05.4]} 31... Qxe5 {[%clk
0:00:15.1]} 32. Bxf4 {[%clk 0:00:05.7]} 32... Qe6 {[%clk 0:00:14.9]} 33. Qe3
{[%clk 0:00:05.7]} 33... Rd3 {[%clk 0:00:14.7]} 34. Qc5 {[%clk 0:00:05.5]} 34...
Qb3 {[%clk 0:00:14.3]} 35. Rxa5 {[%clk 0:00:05.3]} 35... Qxb2 {[%clk 0:00:13.4]}
36. Bg3 {[%clk 0:00:05]} 36... Qe2 {[%clk 0:00:13]} 37. Qg5 {[%clk 0:00:05.2]}
37... Qxe4 {[%clk 0:00:12.3]} 38. Ra7 {[%clk 0:00:04.2]} 38... Qe6 {[%clk
0:00:10.4]} 39. Re7 {[%clk 0:00:03.7]} 39... Qd5 {[%clk 0:00:10.2]} 40. Be5
{[%clk 0:00:03.8]} 40... Rd1 {[%clk 0:00:04.5]} 41. Qf6 {[%clk 0:00:04]} 41...
Rh1+ {[%clk 0:00:02.6]} 42. Kxh1 {[%clk 0:00:03.9]} 1-0

[Event "Late-Titled-Tuesday-Blitz-March-12-2024"]
[Site "Chess.com"]
[Date "2024.03.12"]
[Round "7"]
[White "mishanick"]
[Black "platy3"]
[Result "1-0"]
[WhiteElo "3112"]
[BlackElo "2965"]
[TimeControl "180+1"]
[EndTime "15:17:08 PDT"]
[Termination "mishanick won by resignation"]

1. d4 {[%clk 0:02:01.2]} 1... Nf6 {[%clk 0:02:58.1]} 2. c4 {[%clk 0:02:01.9]}
2... e6 {[%clk 0:02:58.5]} 3. Nc3 {[%clk 0:02:02.7]} 3... Bb4 {[%clk 0:02:57.3]}
4. e3 {[%clk 0:02:03.1]} 4... O-O {[%clk 0:02:56.8]} 5. Bd3 {[%clk 0:02:03.8]}
5... Re8 {[%clk 0:02:56.4]} 6. a3 {[%clk 0:02:01.9]} 6... Bxc3+ {[%clk
0:02:55.5]} 7. bxc3 {[%clk 0:02:02.8]} 7... d6 {[%clk 0:02:55.8]} 8. Ne2 {[%clk
0:01:58.1]} 8... e5 {[%clk 0:02:55.5]} 9. f3 {[%clk 0:01:57.2]} 9... c5 {[%clk
0:02:43]} 10. O-O {[%clk 0:01:56.7]} 10... Nc6 {[%clk 0:02:42.9]} 11. d5 {[%clk
0:01:56.9]} 11... Na5 {[%clk 0:02:42.8]} 12. e4 {[%clk 0:01:39.5]} 12... h6
{[%clk 0:02:38.8]} 13. g4 {[%clk 0:01:37.8]} 13... Nh7 {[%clk 0:02:35.5]} 14.
Ng3 {[%clk 0:01:38.1]} 14... Qh4 {[%clk 0:02:34]} 15. Qe2 {[%clk 0:01:37.4]}
15... Nb3 {[%clk 0:02:26.3]} 16. Rb1 {[%clk 0:01:34.1]} 16... Nxc1 {[%clk
0:02:26.7]} 17. Rfxc1 {[%clk 0:01:33.1]} 17... Ng5 {[%clk 0:02:27]} 18. Kh1
{[%clk 0:01:32.9]} 18... Nh3 {[%clk 0:02:24.6]} 19. Qe3 {[%clk 0:01:32.6]} 19...
Nf4 {[%clk 0:02:22.2]} 20. Bc2 {[%clk 0:01:33.1]} 20... b6 {[%clk 0:02:19.7]}
21. Ba4 {[%clk 0:01:33.3]} 21... Rf8 {[%clk 0:02:03.7]} 22. Bc6 {[%clk
0:01:33.4]} 22... Rb8 {[%clk 0:02:04.1]} 23. a4 {[%clk 0:01:33.9]} 23... g6
{[%clk 0:02:03.2]} 24. a5 {[%clk 0:01:33.2]} 24... Kg7 {[%clk 0:01:52.1]} 25.
Rb2 {[%clk 0:01:31.5]} 25... Rh8 {[%clk 0:01:49.2]} 26. Qe1 {[%clk 0:01:13]}
26... Qf6 {[%clk 0:01:42]} 27. Qe3 {[%clk 0:01:04.1]} 27... h5 {[%clk
0:01:38.1]} 28. gxh5 {[%clk 0:00:59.4]} 28... Nxh5 {[%clk 0:01:39]} 29. Rg1
{[%clk 0:00:56.2]} 29... Nf4 {[%clk 0:01:37.6]} 30. axb6 {[%clk 0:00:51.1]}
30... Rxb6 {[%clk 0:01:26.4]} 31. Ra2 {[%clk 0:00:51]} 31... Ba6 {[%clk
0:01:20.3]} 32. Bb5 {[%clk 0:00:43.6]} 32... Bxb5 {[%clk 0:01:07.1]} 33. cxb5
{[%clk 0:00:44.5]} 33... Rxb5 {[%clk 0:01:07.6]} 34. Qd2 {[%clk 0:00:28.5]}
34... Rb7 {[%clk 0:00:59.4]} 35. Nf5+ {[%clk 0:00:28.5]} 35... Kf8 {[%clk
0:00:57]} 36. Ne3 {[%clk 0:00:27.4]} 36... Rh3 {[%clk 0:00:55]} 37. Ng4 {[%clk
0:00:20.6]} 37... Qh4 {[%clk 0:00:54.5]} 38. Qd1 {[%clk 0:00:19.5]} 38... f5
{[%clk 0:00:42.7]} 39. exf5 {[%clk 0:00:17.6]} 39... gxf5 {[%clk 0:00:42.7]} 40.
Ne3 {[%clk 0:00:17.8]} 40... Rh7 {[%clk 0:00:43.2]} 41. Qc2 {[%clk 0:00:11.7]}
41... Nd3 {[%clk 0:00:30.3]} 42. Qg2 {[%clk 0:00:06.6]} 42... a5 {[%clk
0:00:04.1]} 43. Qg8+ {[%clk 0:00:05.6]} 43... Ke7 {[%clk 0:00:04.8]} 44. Nxf5+
{[%clk 0:00:06.2]} 1-0

[Event "Late-Titled-Tuesday-Blitz-March-12-2024"]
[Site "Chess.com"]
[Date "2024.03.12"]
[Round "7"]
[White "Bauman_Guy"]
[Black "DryCounty"]
[Result "1-0"]
[WhiteElo "2923"]
[BlackElo "2663"]
[TimeControl "180+1"]
[EndTime "15:17:08 PDT"]
[Termination "Bauman_Guy won on time"]

1. e4 {[%clk 0:03:00.9]} 1... Nf6 {[%clk 0:02:55.7]} 2. e5 {[%clk 0:03:00.6]}
2... Nd5 {[%clk 0:02:55.6]} 3. d4 {[%clk 0:03:01.5]} 3... d6 {[%clk 0:02:55.3]}
4. Bc4 {[%clk 0:03:02.2]} 4... Nb6 {[%clk 0:02:54.7]} 5. Bb3 {[%clk 0:03:02.6]}
5... dxe5 {[%clk 0:02:54.7]} 6. Qh5 {[%clk 0:03:02.7]} 6... e6 {[%clk
0:02:53.9]} 7. dxe5 {[%clk 0:03:03]} 7... a5 {[%clk 0:02:53.5]} 8. a4 {[%clk
0:03:01.4]} 8... Na6 {[%clk 0:02:52.8]} 9. Nh3 {[%clk 0:03:01.6]} 9... Nc5
{[%clk 0:02:50.5]} 10. Nc3 {[%clk 0:03:02]} 10... c6 {[%clk 0:02:39.5]} 11. O-O
{[%clk 0:02:58.2]} 11... Nxb3 {[%clk 0:02:38.8]} 12. cxb3 {[%clk 0:02:58.1]}
12... Qd3 {[%clk 0:02:37.5]} 13. Nf4 {[%clk 0:02:58.3]} 13... Qf5 {[%clk
0:02:36.1]} 14. Qe2 {[%clk 0:02:58]} 14... Bb4 {[%clk 0:02:30.9]} 15. g4 {[%clk
0:02:49.7]} 15... Qg5 {[%clk 0:02:28.9]} 16. Nfd5 {[%clk 0:02:32]} 16... Qd8
{[%clk 0:02:25.2]} 17. Nxb4 {[%clk 0:02:24]} 17... axb4 {[%clk 0:02:24]} 18. Ne4
{[%clk 0:02:22.3]} 18... O-O {[%clk 0:02:22]} 19. Bg5 {[%clk 0:02:20.9]} 19...
f6 {[%clk 0:02:17.9]} 20. Rad1 {[%clk 0:02:15.8]} 20... Nd5 {[%clk 0:02:15.6]}
21. Bd2 {[%clk 0:02:08.3]} 21... Qe8 {[%clk 0:02:11.2]} 22. exf6 {[%clk
0:01:49.8]} 22... gxf6 {[%clk 0:02:09.5]} 23. Kh1 {[%clk 0:01:47.2]} 23... Qg6
{[%clk 0:02:05]} 24. f4 {[%clk 0:01:46.5]} 24... b6 {[%clk 0:01:53.2]} 25. Nd6
{[%clk 0:01:44.7]} 25... Ba6 {[%clk 0:01:40.5]} 26. Qxe6+ {[%clk 0:01:42.6]}
26... Kh8 {[%clk 0:01:41]} 27. Rfe1 {[%clk 0:01:26.2]} 27... Qd3 {[%clk
0:01:18.9]} 28. Be3 {[%clk 0:00:58.9]} 28... Qxb3 {[%clk 0:01:15.1]} 29. g5
{[%clk 0:00:58.8]} 29... Be2 {[%clk 0:01:05]} 30. Rd2 {[%clk 0:00:49.9]} 30...
Qxe3 {[%clk 0:00:46.8]} 31. Qxe3 {[%clk 0:00:44.2]} 31... Nxe3 {[%clk
0:00:47.7]} 32. Rexe2 {[%clk 0:00:22]} 32... Nd5 {[%clk 0:00:47.7]} 33. Rd4
{[%clk 0:00:14.8]} 33... Rxa4 {[%clk 0:00:47.1]} 34. h4 {[%clk 0:00:15]} 34...
Kg7 {[%clk 0:00:41.3]} 35. f5 {[%clk 0:00:15.3]} 35... Rd8 {[%clk 0:00:22]} 36.
Re6 {[%clk 0:00:15.4]} 36... Kf8 {[%clk 0:00:16.4]} 37. Ne4 {[%clk 0:00:13.5]}
37... c5 {[%clk 0:00:14.1]} 38. Rd2 {[%clk 0:00:12.1]} 38... Raa8 {[%clk
0:00:13.3]} 39. Nxf6 {[%clk 0:00:11.6]} 39... Nf4 {[%clk 0:00:11.6]} 40. Rxd8+
{[%clk 0:00:09.6]} 40... Rxd8 {[%clk 0:00:12.4]} 41. Rxb6 {[%clk 0:00:10.3]}
41... Kf7 {[%clk 0:00:03.7]} 42. Rb7+ {[%clk 0:00:10.2]} 42... Kf8 {[%clk
0:00:02.9]} 43. Nxh7+ {[%clk 0:00:10.7]} 43... Kg8 {[%clk 0:00:03]} 44. Nf6+
{[%clk 0:00:11.3]} 44... Kf8 {[%clk 0:00:03.4]} 45. g6 {[%clk 0:00:11.9]} 1-0